Workbook

Sheet доход
A1: Утверждаю:
A2: Заведующий МБДОУ «Детский сад № 38с. Средняя Камышла» НМР РТ
A3: ___________________
H4: на 01.07.2023
A5: РАСЧЕТЫ (ОБОСНОВАНИЯ) К ПЛАНУ ФИНАНСОВО-ХОЗЯЙСТВЕННОЙ ДЕЯТЕЛЬНОСТИ ГОСУДАРСТВЕННОГО УЧРЕЖДЕНИЯ (по доходам)
A6: 1. Расчеты (обоснования) выплат персоналу (строка 210)
A7: Код видов расходов ____________111
A8: Источник финансового обеспечения_______Бюджет
A9: 1.1. Расчеты (обоснования) расходов на оплату труда
A10: N п/п | B10: Должность, группа должностей | C10: Установленная численность, единиц | D10: Среднемесячный размер оплаты труда на одного работника, руб. | H10: Ежемесячная надбавка к | I10: 1% на замещение, руб в мес | J10: Фонд оплаты труда в год, руб. ((гр.3 х гр.4 +гр.9)х х 12)
D11: всего | E11: в том числе; | H11: должностному окладу, %
E12: по должностному окладу | F12: по выплатам компенсационного характера | G12: по выплатам стимулирующего характера
A13: 1 | B13: 2 | C13: 3 | D13: 4 | E13: 5 | F13: 6 | G13: 7 | H13: 8 | I13: 9 | J13: 10
A14: 1 | B14: Заведующий | C14: 1 | D14: 28000 | E14: 25000 | G14: =D14-E14-F14 -> 3000 | I14: 280 | J14: =(C14*D14+I14)*12 -> 339360.00
A15: 2 | B15: Педагогический персонал | C15: 1 | D15: 32330.39 | E15: 18494 | F15: 1388 | G15: =D15-E15-F15 -> 12448.39 | I15: 323.3 | J15: =(C15*D15+I15)*12+0.26 -> 391844.54
A16: 3 | B16: Учебно-вспомогательный персонал | C16: 1 | D16: 19225.89 | E16: 15,662.00 | F16: 0 | G16: =D16-E16-F16 -> 3563.89 | I16: 192.26 | J16: =(C16*D16+I16)*12 -> 233017.80
A17: 4 | B17: Технический персонал | C17: 5.25 | D17: 18530.69 | E17: 15472.71 | F17: 2473.05 | G17: 584.93 | I17: 972.86 | J17: =(C17*D17+I17)*12 -> 1179107.79
A18: ИТОГО | C18: =SUM(C14:C17) -> 8.25 | F18: X | G18: X | H18: X | J18: =J14+J15+J16+J17 -> 2143330.13 | K18: 2,143,330.13
K19: =K18-J18 -> 0.00
A20: 1. Расчеты (обоснования) выплат персоналу (строка 210)
A21: Код видов расходов _____________________________________________
A22: Источник финансового обеспечения________________________________
A23: 1.2. Расчеты (обоснования) выплат персоналу при направлении в служебные командировки
A24: N п/п | B24: Наименование расходов | E24: Средний размер выплаты на одного работника в день, руб. | G24: Количество работников, чел. | H24: Количество дней | I24: Сумма, руб. (гр. 3 х гр.4 х гр.5)
A25: 1 | B25: 2 | E25: 3 | G25: 4 | H25: 5 | I25: 6
A26: 1 | B26: Проживание
A27: 2 | B27: Проезд
A28: 3 | B28: Суточные
A29: ИТОГО | E29: x | G29: x | H29: x | I29: =SUM(I26:J28) -> 0
A31: 1. Расчеты (обоснования) выплат персоналу
A32: Код видов расходов ____119_________________________________________
A33: Источник финансового обеспечения_______Бюджет_________________________
A34: 1.4. Расчет (обоснование) страховых взносов на обязательное страхование в Пенсионный фонд Российской Федерации, Фонд социального страхования Российской Федерации, в Федеральный фонд обязательного медицинского страхования
A35: N п/п | B35: Наименование государственного внебюджетного фонда | G35: Размер базы для начисления страховых взносов, руб. | I35: Сумма взноса, руб.
A36: 1 | B36: 2 | G36: 3 | J36: 4
A37: 1 | B37: Страховые взносы в Пенсионный фонд Российской Федерации, всего | G37: X | I37: =I38 -> 471532.63
B38: в том числе: | G38: =J18 -> 2,143,330.13 | I38: =I50/30.2*22 -> 471532.63
B39: по ставке 22,0%
B40: по ставке 10,0%
B41: с применением пониженных тарифов взносов в Пенсионный фонд Российской Федерации для отдельных категорий плательщиков
A42: 2 | B42: Страховые взносы в Фонд социального страхования Российской Федерации, всего | G42: X | I42: =I43+I46 -> 66443.23
B43: в том числе: | G43: =J18 -> 2,143,330.13 | I43: =I50/30.2*2.9 -> 62156.57
B44: обязательное социальное страхование на случай временной нетрудоспособности и в связи с материнством по ставке 2,9%
B45: с применением ставки взносов в Фонд социального страхования Российской Федерации по ставке 0,0%
B46: обязательное социальное страхование от несчастных случаев на производстве и профессиональных заболеваний по ставке 0,2% | G46: =G43 -> 2,143,330.13 | I46: =I50/30.2*0.2 -> 4286.66
B47: обязательное социальное страхование от несчастных случаев на производстве и профессиональных заболеваний по ставке 0, ___% <*>
B48: обязательное социальное страхование от несчастных случаев на производстве и профессиональных заболеваний по ставке 0,___% <*>
A49: 3 | B49: Страховые взносы в Федеральный фонд обязательного медицинского страхования, всего (по ставке 5,1%) | G49: =G46 -> 2,143,330.13 | I49: =I50/30.2*5.1 -> 109309.84
A50: Итого: | G50: X | I50: 647285.70
A52: 2. Расчеты (обоснования) расходов на социальные и иные выплаты населению
A53: Код видов расходов __112___________________________________________
A54: Источник финансового обеспечения________________________________
A55: N п/п | B55: Наименование показателя | F55: Размер одной выплаты, руб. | H55: Количество выплат в год | J55: Сумма, руб.
A56: 1 | B56: 2 | F56: 3 | H56: 4 | J56: 5
A57: 1 | B57: Выплаты льгот на ком.услуги | H57: 12 | J57: 0
A58: ИТОГО | F58: X | H58: X | J58: =J57 -> 0
A60: 3. Расчеты (обоснования) расходов на уплату налогов, сборов и иных платежей
A61: Код видов расходов 851,852,853
A62: Источник финансового обеспечения_Бюджет_____________________
A64: N п/п | B64: Наименование расходов | E64: Налоговая база, руб. | G64: Ставка налога, % | I64: Сумма исчисленного налога, подлежащего уплате, руб.
A65: 1 | B65: 2 | E65: 3 | G65: 4 | I65: 5
A66: 1 | B66: Налог на имущество | E66: =I66/G66*100 -> 2196363.636 | G66: 2.2 | I66: 48320
A67: 2 | B67: Земельный налог | E67: =I67/G67*100 -> 484067.7966 | G67: 0.59 | I67: 2856
A68: Итого: | I68: =SUM(I66:J67) -> 51176
A70: 6. Расчеты (обоснования) на закупку товаров, работ, услуг
A71: Код видов расходов 221,223,225,226,340
A72: Источник финансового обеспечения_______Бюджет
A73: 6.1. Расчет (обоснование) расходов на оплату услуг связи (221)
A74: N п/п | B74: Наименование расходов | E74: Количество номеров | F74: Количество платежей в год | H74: Стоимость за единицу, руб. | J74: Сумма, руб.
A75: 1 | B75: 2 | E75: 3 | F75: 4 | H75: 5 | J75: 6
A76: 1 | B76: Услуги связи | E76: 1 | F76: 12 | H76: =J76/F76 -> 1166.67 | J76: 14000.00
B77: Итого: | E77: X | F77: X | H77: X | J77: =SUM(J76:J76) -> 14000.00
A79: 6.2. Расчет (обоснование) расходов на оплату транспортных услуг (222)
A80: N п/п | B80: Наименование расходов | E80: Количество услуг перевозки | G80: Цена услуги перевозки, руб. | I80: Сумма, руб. (гр.3 х гр.4)
A81: 1 | B81: 2 | E81: 3 | G81: 4 | I81: 5
A82: 1
A83: Итого: | I83: =I82 -> 0.00
A84: 6.3. Расчет (обоснование) расходов на оплату коммунальных услуг (223)
A85: N п/п | B85: Наименование показателя | D85: Размер потребления ресурсов | F85: Тариф (с учетом НДС), руб. | H85: Индексация, % | I85: Сумма, руб
A86: 1 | B86: 2 | D86: 3 | F86: 4 | H86: 5 | I86: 6
A87: 1 | B87: Электроснабжение | D87: =I87/F87 -> 8.45 | F87: 9000.00 | I87: 76076.00
A88: 2 | B88: Теплоснабжение
A89: 3 | B89: Газоснабжение | D89: =I89/F89 -> 15.60 | F89: 8000.00 | I89: 124800.00
A90: 4 | B90: ТБО | I90: 4011.09
A91: 5 | B91: Водоснабжение | D91: =I91/F91 -> 0.00 | F91: 30.72
A92: Итого: | D92: X | F92: X | H92: X | I92: =SUM(I87:J91) -> 204887.09
A93: 6.5. Расчет (обоснование) расходов на оплату работ, услуг по содержанию имущества (225)
A94: N п/п | B94: Наименование показателя | F94: Объект | H94: Количество работ (услуг) | I94: Стоимость работ (услуг), руб.
A95: 1 | B95: 2 | F95: 3 | H95: 4 | I95: 5
A96: 1 | B96: Техобслуживание охранной сигн. | F96: ДОУ | H96: 12 | I96: 12264
A97: 2 | B97: Техобслуживание пожарной сигн. | F97: ДОУ | H97: 12 | I97: 12000
A98: 3 | B98: Дезинфекция, дератизация | F98: ДОУ | H98: 12 | I98: 4500
A99: 4 | B99: Техобслуживание стрельца-монит | F99: ДОУ | H99: 12 | I99: 33600
A100: 5 | B100: Техобслуживание видеонаблюдения | F100: ДОУ | H100: 12 | I100: 33630
A101: 6 | B101: Техобслуживание газ | F101: ДОУ | H101: 12 | I101: 4200
A102: 7 | B102: Проверка сигнализации | F102: ДОУ | H102: 12
A103: 8 | B103: Дымоходы | F103: ДОУ | H103: 12 | I103: 1500
A104: 9 | B104: Работы, услуги по содержанию имущества | F104: ДОУ | H104: 12
A105: Итого: | F105: X | H105: X | I105: =SUM(I96:J104) -> 101694
A107: 6.6. Расчет (обоснование) расходов на оплату прочих работ, услуг (226)
A108: N п/п | B108: Наименование показателя | F108: Количество договоров | H108: Стоимость услуги, руб.
A109: 1 | B109: 2 | F109: 3 | H109: 4
A110: 1 | B110: Услуга вневедомственной охраны | F110: Х | H110: 40471.2
A111: 2 | B111: Производственный контроль | F111: Х | H111: 11000
A112: 3 | B112: Регистрация на биржевой площадке | H112: 1.2
A113: 4 | B113: Прочие работы, услуги | H113: 28470
A114: Итого: | F114: Х | H114: =SUM(H110:I113) -> 79942.4
A116: 6.7. Расчет (обоснование) расходов на приобретение основных средств и материальных запасов (340)
A117: N п/п | B117: Наименование расходов | F117: Количество | G117: Средняя стоимость, руб. | I117: Сумма, руб.
B118: 1 | F118: 2 | G118: 3 | I118: 4
A119: 1 | B119: Продукты питания (молочка) | I119: 0
A120: 1 | B120: Продукты питания | I120: 231460.13
A121: 2 | B121: Продукты питания молочка | I121: 102559.87
A122: 3 | B122: Приобретение медикаментов
A123: 4 | B123: Приобретение 99999 | I123: 10169.5
A124: Итого: | G124: X | I124: =SUM(I119:J123) -> 344189.5
B126: Резерв з/п
B129: ИТОГО | J129: =J18+I29+I50+J58+I68+J77+I92+I105+H114+I124+I126 -> 3586504.82
J130: 3,586,504.82
J131: =J129-J130 -> 0.00

Sheet расход
A1: Утверждаю:
A2: Заведующий МБДОУ «Детский сад № 38с. Средняя Камышла» НМР РТ
A3: ___________________
H4: на 01.07.2023
A5: РАСЧЕТЫ (ОБОСНОВАНИЯ) К ПЛАНУ ФИНАНСОВО-ХОЗЯЙСТВЕННОЙ ДЕЯТЕЛЬНОСТИ ГОСУДАРСТВЕННОГО УЧРЕЖДЕНИЯ (по расходам)
A6: 1. Расчеты (обоснования) выплат персоналу (строка 210)
A7: Код видов расходов ____________111
A8: Источник финансового обеспечения_______Бюджет
A9: 1.1. Расчеты (обоснования) расходов на оплату труда
A10: N п/п | B10: Должность, группа должностей | C10: Установленная численность, единиц | D10: Среднемесячный размер оплаты труда на одного работника, руб. | H10: Ежемесячная надбавка к | I10: 1% на замещение, руб в мес | J10: Фонд оплаты труда в год, руб. ((гр.3 х гр.4 +гр.9)х х 12)
D11: всего | E11: в том числе; | H11: должностному окладу, %
E12: по должностному окладу | F12: по выплатам компенсационного характера | G12: по выплатам стимулирующего характера
A13: 1 | B13: 2 | C13: 3 | D13: 4 | E13: 5 | F13: 6 | G13: 7 | H13: 8 | I13: 9 | J13: 10
A14: 1 | B14: Заведующий | C14: 1 | D14: 28000 | E14: 25000 | G14: =D14-E14-F14 -> 3000 | I14: 280 | J14: =(C14*D14+I14)*12 -> 339360.00
A15: 2 | B15: Педагогический персонал | C15: 1 | D15: 32521.33 | E15: 18494 | F15: 1388 | G15: =D15-E15-F15 -> 12639.33 | I15: 323.3 | J15: =(C15*D15+I15)*12+0.26 -> 394135.82
A16: 3 | B16: Учебно-вспомогательный персонал | C16: 1 | D16: 19225.89 | E16: 15,662.00 | F16: 0 | G16: =D16-E16-F16 -> 3563.89 | I16: 192.26 | J16: =(C16*D16+I16)*12 -> 233017.80
A17: 4 | B17: Технический персонал | C17: 5.25 | D17: 18530.69 | E17: 15472.71 | F17: 2473.05 | G17: 584.93 | I17: 972.86 | J17: =(C17*D17+I17)*12 -> 1179107.79
A18: ИТОГО | C18: =SUM(C14:C17) -> 8.25 | F18: X | G18: X | H18: X | J18: =J14+J15+J16+J17 -> 2145621.41 | K18: 2,145,621.41
K19: =K18-J18 -> 0.00
A20: 1. Расчеты (обоснования) выплат персоналу (строка 210)
A21: Код видов расходов _____________________________________________
A22: Источник финансового обеспечения________________________________
A23: 1.2. Расчеты (обоснования) выплат персоналу при направлении в служебные командировки
A24: N п/п | B24: Наименование расходов | E24: Средний размер выплаты на одного работника в день, руб. | G24: Количество работников, чел. | H24: Количество дней | I24: Сумма, руб. (гр. 3 х гр.4 х гр.5)
A25: 1 | B25: 2 | E25: 3 | G25: 4 | H25: 5 | I25: 6
A26: 1 | B26: Проживание
A27: 2 | B27: Проезд
A28: 3 | B28: Суточные
A29: ИТОГО | E29: x | G29: x | H29: x | I29: =SUM(I26:J28) -> 0
A31: 1. Расчеты (обоснования) выплат персоналу
A32: Код видов расходов ____119_________________________________________
A33: Источник финансового обеспечения_______Бюджет_________________________
A34: 1.4. Расчет (обоснование) страховых взносов на обязательное страхование в Пенсионный фонд Российской Федерации, Фонд социального страхования Российской Федерации, в Федеральный фонд обязательного медицинского страхования
A35: N п/п | B35: Наименование государственного внебюджетного фонда | G35: Размер базы для начисления страховых взносов, руб. | I35: Сумма взноса, руб.
A36: 1 | B36: 2 | G36: 3 | J36: 4
A37: 1 | B37: Страховые взносы в Пенсионный фонд Российской Федерации, всего | G37: X | I37: =I38 -> 472036.71
B38: в том числе: | G38: =J18 -> 2,145,621.41 | I38: =I50/30.2*22 -> 472036.71
B39: по ставке 22,0%
B40: по ставке 10,0%
B41: с применением пониженных тарифов взносов в Пенсионный фонд Российской Федерации для отдельных категорий плательщиков
A42: 2 | B42: Страховые взносы в Фонд социального страхования Российской Федерации, всего | G42: X | I42: =I43+I46 -> 66514.26
B43: в том числе: | G43: =J18 -> 2,145,621.41 | I43: =I50/30.2*2.9 -> 62223.02
B44: обязательное социальное страхование на случай временной нетрудоспособности и в связи с материнством по ставке 2,9%
B45: с применением ставки взносов в Фонд социального страхования Российской Федерации по ставке 0,0%
B46: обязательное социальное страхование от несчастных случаев на производстве и профессиональных заболеваний по ставке 0,2% | G46: =G43 -> 2,145,621.41 | I46: =I50/30.2*0.2 -> 4291.24
B47: обязательное социальное страхование от несчастных случаев на производстве и профессиональных заболеваний по ставке 0, ___% <*>
B48: обязательное социальное страхование от несчастных случаев на производстве и профессиональных заболеваний по ставке 0,___% <*>
A49: 3 | B49: Страховые взносы в Федеральный фонд обязательного медицинского страхования, всего (по ставке 5,1%) | G49: =G46 -> 2,145,621.41 | I49: =I50/30.2*5.1 -> 109426.69
A50: Итого: | G50: X | I50: 647977.67
A52: 2. Расчеты (обоснования) расходов на социальные и иные выплаты населению
A53: Код видов расходов __112___________________________________________
A54: Источник финансового обеспечения________________________________
A55: N п/п | B55: Наименование показателя | F55: Размер одной выплаты, руб. | H55: Количество выплат в год | J55: Сумма, руб.
A56: 1 | B56: 2 | F56: 3 | H56: 4 | J56: 5
A57: 1 | B57: Выплаты льгот на ком.услуги | H57: 12 | J57: 0
A58: ИТОГО | F58: X | H58: X | J58: =J57 -> 0
A60: 3. Расчеты (обоснования) расходов на уплату налогов, сборов и иных платежей
A61: Код видов расходов 851,852,853
A62: Источник финансового обеспечения_Бюджет_____________________
A64: N п/п | B64: Наименование расходов | E64: Налоговая база, руб. | G64: Ставка налога, % | I64: Сумма исчисленного налога, подлежащего уплате, руб.
A65: 1 | B65: 2 | E65: 3 | G65: 4 | I65: 5
A66: 1 | B66: Налог на имущество | E66: =I66/G66*100 -> 2196363.636 | G66: 2.2 | I66: 48320
A67: 2 | B67: Земельный налог | E67: =I67/G67*100 -> 484067.7966 | G67: 0.59 | I67: 2856
A68: 3 | B68: прочие расходы по безвозмездным перечисл | I68: 3991.63
A69: Итого: | I69: =SUM(I66:J68) -> 55167.63
A71: 6. Расчеты (обоснования) на закупку товаров, работ, услуг
A72: Код видов расходов 221,223,225,226,340
A73: Источник финансового обеспечения_______Бюджет
A74: 6.1. Расчет (обоснование) расходов на оплату услуг связи (221)
A75: N п/п | B75: Наименование расходов | E75: Количество номеров | F75: Количество платежей в год | H75: Стоимость за единицу, руб. | J75: Сумма, руб.
A76: 1 | B76: 2 | E76: 3 | F76: 4 | H76: 5 | J76: 6
A77: 1 | B77: Услуги связи | E77: 1 | F77: 12 | H77: =J77/F77 -> 1166.67 | J77: 14000.00
B78: Итого: | E78: X | F78: X | H78: X | J78: =SUM(J77:J77) -> 14000.00
A80: 6.2. Расчет (обоснование) расходов на оплату транспортных услуг (222)
A81: N п/п | B81: Наименование расходов | E81: Количество услуг перевозки | G81: Цена услуги перевозки, руб. | I81: Сумма, руб. (гр.3 х гр.4)
A82: 1 | B82: 2 | E82: 3 | G82: 4 | I82: 5
A83: 1
A84: Итого: | I84: =I83 -> 0.00
A85: 6.3. Расчет (обоснование) расходов на оплату коммунальных услуг (223)
A86: N п/п | B86: Наименование показателя | D86: Размер потребления ресурсов | F86: Тариф (с учетом НДС), руб. | H86: Индексация, % | I86: Сумма, руб
A87: 1 | B87: 2 | D87: 3 | F87: 4 | H87: 5 | I87: 6
A88: 1 | B88: Электроснабжение | D88: =I88/F88 -> 8.45 | F88: 9000.00 | I88: 76076.00
A89: 2 | B89: Теплоснабжение
A90: 3 | B90: Газоснабжение | D90: =I90/F90 -> 15.60 | F90: 8000.00 | I90: 124800.00
A91: 4 | B91: ТБО | I91: 4011.09
A92: 5 | B92: Водоснабжение | D92: =I92/F92 -> 0.00 | F92: 30.72
A93: Итого: | D93: X | F93: X | H93: X | I93: =SUM(I88:J92) -> 204887.09
A94: 6.5. Расчет (обоснование) расходов на оплату работ, услуг по содержанию имущества (225)
A95: N п/п | B95: Наименование показателя | F95: Объект | H95: Количество работ (услуг) | I95: Стоимость работ (услуг), руб.
A96: 1 | B96: 2 | F96: 3 | H96: 4 | I96: 5
A97: 1 | B97: Техобслуживание охранной сигн. | F97: ДОУ | H97: 12 | I97: 12264
A98: 2 | B98: Техобслуживание пожарной сигн. | F98: ДОУ | H98: 12 | I98: 12000
A99: 3 | B99: Дезинфекция, дератизация | F99: ДОУ | H99: 12 | I99: 4500
A100: 4 | B100: Техобслуживание стрельца-монит | F100: ДОУ | H100: 12 | I100: 33600
A101: 5 | B101: Техобслуживание видеонаблюдения | F101: ДОУ | H101: 12 | I101: 33630
A102: 6 | B102: Техобслуживание газ | F102: ДОУ | H102: 12 | I102: 4200
A103: 7 | B103: Проверка сигнализации | F103: ДОУ | H103: 12
A104: 8 | B104: Дымоходы | F104: ДОУ | H104: 12 | I104: 1500
A105: 9 | B105: Работы, услуги по содержанию имущества | F105: ДОУ | H105: 12
A106: Итого: | F106: X | H106: X | I106: =SUM(I97:J105) -> 101694
A108: 6.6. Расчет (обоснование) расходов на оплату прочих работ, услуг (226)
A109: N п/п | B109: Наименование показателя | F109: Количество договоров | H109: Стоимость услуги, руб.
A110: 1 | B110: 2 | F110: 3 | H110: 4
A111: 1 | B111: Услуга вневедомственной охраны | F111: Х | H111: 40471.2
A112: 2 | B112: Производственный контроль | F112: Х | H112: 11000
A113: 3 | B113: Регистрация на биржевой площадке | H113: 1.2
A114: 4 | B114: Прочие работы, услуги | H114: 28470
A115: Итого: | F115: Х | H115: =SUM(H111:I114) -> 79942.4
A117: 6.7. Расчет (обоснование) расходов на приобретение основных средств и материальных запасов (340)
A118: N п/п | B118: Наименование расходов | F118: Количество | G118: Средняя стоимость, руб. | I118: Сумма, руб.
B119: 1 | F119: 2 | G119: 3 | I119: 4
A120: 1 | B120: Продукты питания (молочка) | I120: 0
A121: 1 | B121: Продукты питания | I121: 275011.51
A122: 2 | B122: Продукты питания молочка | I122: 102559.87
A123: 3 | B123: Приобретение медикаментов
A124: 4 | B124: Приобретение 99999 | I124: 10169.5
A125: Итого: | G125: X | I125: =SUM(I120:J124) -> 387740.88
B127: Резерв з/п
B130: ИТОГО | J130: =J18+I29+I50+J58+I69+J78+I93+I106+H115+I125+I127 -> 3637031.08
J131: 3,637,031.08
J132: =J130-J131 -> 0.00

Sheet иные
A1: Утверждаю:
A2: Заведующий МБДОУ «Детский сад № 38с. Средняя Камышла» НМР РТ
A3: ___________________
H4: на 01.07.2023
A5: РАСЧЕТЫ (ОБОСНОВАНИЯ) К ПЛАНУ ФИНАНСОВО-ХОЗЯЙСТВЕННОЙ ДЕЯТЕЛЬНОСТИ ГОСУДАРСТВЕННОГО УЧРЕЖДЕНИЯ (иные)
A6: 1. Расчеты (обоснования) выплат персоналу (строка 210)
A7: Код видов расходов ____________111
A8: Источник финансового обеспечения_______Бюджет
A9: 1.1. Расчеты (обоснования) расходов на оплату труда
A10: N п/п | B10: Должность, группа должностей | C10: Установленная численность, единиц | D10: Среднемесячный размер оплаты труда на одного работника, руб. | H10: Ежемесячная надбавка к | I10: 1% на замещение, руб в мес | J10: Фонд оплаты труда в год, руб. ((гр.3 х гр.4 +гр.9)х х 12)
D11: всего | E11: в том числе; | H11: должностному окладу, %
E12: по должностному окладу | F12: по выплатам компенсационного характера | G12: по выплатам стимулирующего характера
A13: 1 | B13: 2 | C13: 3 | D13: 4 | E13: 5 | F13: 6 | G13: 7 | H13: 8 | I13: 9 | J13: 10
A14: 1 | B14: Заведующий | C14: 1 | J14: =(C14*D14+I14)*12 -> 0.00
A15: 2 | B15: Педагогический персонал | C15: 13.16 | J15: =(C15*D15+I15)*12 -> 0.00
A16: 3 | B16: Учебно-вспомогательный персонал | C16: 11 | G16: =D16-I146-F16 -> 0 | J16: =(C16*D16+I16)*12 -> 0.00
A17: 4 | B17: Технический персонал | C17: 10.05 | J17: =(C17*D17+I17)*12 -> 0.00
A18: ИТОГО | C18: =SUM(C14:C17) -> 35.21 | E18: X | F18: X | G18: X | H18: X | I18: X | J18: =SUM(J14:J17) -> 0.00
A20: 1. Расчеты (обоснования) выплат персоналу (строка 210)
A21: Код видов расходов _____________________________________________
A22: Источник финансового обеспечения________________________________
A23: 1.2. Расчеты (обоснования) выплат персоналу при направлении в служебные командировки
A24: N п/п | B24: Наименование расходов | E24: Средний размер выплаты на одного работника в день, руб. | G24: Количество работников, чел. | H24: Количество дней | I24: Сумма, руб. (гр. 3 х гр.4 х гр.5)
A25: 1 | B25: 2 | E25: 3 | G25: 4 | H25: 5 | I25: 6
A26: 1 | B26: Проживание
A27: 2 | B27: Проезд
A28: 3 | B28: Суточные
A29: ИТОГО | E29: x | G29: x | H29: x | I29: =SUM(I26:J28) -> 0
A31: 1. Расчеты (обоснования) выплат персоналу
A32: Код видов расходов ____119_________________________________________
A33: Источник финансового обеспечения_______Бюджет_________________________
A34: 1.4. Расчет (обоснование) страховых взносов на обязательное страхование в Пенсионный фонд Российской Федерации, Фонд социального страхования Российской Федерации, в Федеральный фонд обязательного медицинского страхования
A35: N п/п | B35: Наименование государственного внебюджетного фонда | G35: Размер базы для начисления страховых взносов, руб. | I35: Сумма взноса, руб.
A36: 1 | B36: 2 | G36: 3 | J36: 4
A37: 1 | B37: Страховые взносы в Пенсионный фонд Российской Федерации, всего | G37: X | I37: =I38 -> 0.00
B38: в том числе: | G38: =J18 -> 0.00 | I38: =I50/30.2*22 -> 0.00
B39: по ставке 22,0%
B40: по ставке 10,0%
B41: с применением пониженных тарифов взносов в Пенсионный фонд Российской Федерации для отдельных категорий плательщиков
A42: 2 | B42: Страховые взносы в Фонд социального страхования Российской Федерации, всего | G42: X | I42: =I43+I46 -> 0.00
B43: в том числе: | G43: =J18 -> 0.00 | I43: =I50/30.2*2.9 -> 0.00
B44: обязательное социальное страхование на случай временной нетрудоспособности и в связи с материнством по ставке 2,9%
B45: с применением ставки взносов в Фонд социального страхования Российской Федерации по ставке 0,0%
B46: обязательное социальное страхование от несчастных случаев на производстве и профессиональных заболеваний по ставке 0,2% | G46: =G43 -> 0.00 | I46: =I50/30.2*0.2 -> 0.00
B47: обязательное социальное страхование от несчастных случаев на производстве и профессиональных заболеваний по ставке 0, ___% <*>
B48: обязательное социальное страхование от несчастных случаев на производстве и профессиональных заболеваний по ставке 0,___% <*>
A49: 3 | B49: Страховые взносы в Федеральный фонд обязательного медицинского страхования, всего (по ставке 5,1%) | G49: =G46 -> 0.00 | I49: =I50/30.2*5.1 -> 0.00
A50: Итого: | G50: X
A52: 2. Расчеты (обоснования) расходов на социальные и иные выплаты населению
A53: Код видов расходов __112___________________________________________
A54: Источник финансового обеспечения________________________________
A55: N п/п | B55: Наименование показателя | F55: Размер одной выплаты, руб. | H55: Количество выплат в год | J55: Сумма, руб.
A56: 1 | B56: 2 | F56: 3 | H56: 4 | J56: 5
A57: 1 | B57: Выплаты льгот на ком.услуги | H57: 12
A58: ИТОГО | F58: X | H58: X | J58: =J57 -> 0
A60: 3. Расчеты (обоснования) расходов на уплату налогов, сборов и иных платежей
A61: Код видов расходов 851,852,853
A62: Источник финансового обеспечения_Бюджет_____________________
A64: N п/п | B64: Наименование расходов | E64: Налоговая база, руб. | G64: Ставка налога, % | I64: Сумма исчисленного налога, подлежащего уплате, руб.
A65: 1 | B65: 2 | E65: 3 | G65: 4 | I65: 5
A66: 1 | B66: Налог на имущество | E66: =I66/G66*100 -> 0 | G66: 2.2
A67: 2 | B67: Земельный налог | E67: =I67/G67*100 -> 0 | G67: 0.59
A68: Итого: | I68: =SUM(I66:J67) -> 0
A70: 6. Расчеты (обоснования) на закупку товаров, работ, услуг
A71: Код видов расходов 221,223,225,226,340
A72: Источник финансового обеспечения_______Бюджет
A73: 6.1. Расчет (обоснование) расходов на оплату услуг связи (221)
A74: N п/п | B74: Наименование расходов | E74: Количество номеров | F74: Количество платежей в год | H74: Стоимость за единицу, руб. | J74: Сумма, руб.
A75: 1 | B75: 2 | E75: 3 | F75: 4 | H75: 5 | J75: 6
A76: 1 | B76: Услуги связи | E76: 1 | F76: 12 | H76: =J76/F76 -> 0.00
B77: Итого: | E77: X | F77: X | H77: X | J77: =SUM(J76:J76) -> 0.00
A79: 6.2. Расчет (обоснование) расходов на оплату транспортных услуг (222)
A80: N п/п | B80: Наименование расходов | E80: Количество услуг перевозки | G80: Цена услуги перевозки, руб. | I80: Сумма, руб. (гр.3 х гр.4)
A81: 1 | B81: 2 | E81: 3 | G81: 4 | I81: 5
A82: 1
A83: Итого: | I83: =I82 -> 0.00
A84: 6.3. Расчет (обоснование) расходов на оплату коммунальных услуг (223)
A85: N п/п | B85: Наименование показателя | D85: Размер потребления ресурсов | F85: Тариф (с учетом НДС), руб. | H85: Индексация, % | I85: Сумма, руб
A86: 1 | B86: 2 | D86: 3 | F86: 4 | H86: 5 | I86: 6
A87: 1 | B87: Электроснабжение-223001 | D87: =I87/F87 -> 0.00 | F87: 9.50
A88: 2 | B88: Теплоснабжение 223002 | D88: =I88/F88 -> 0.00 | F88: 2227.82
A89: 3 | B89: Газоснабжение
A90: 4 | B90: Водоснабжение | D90: =I90/F90 -> 0.00 | F90: 35.98
A91: 5 | B91: Содержание в чистоте помещений
A92: Итого: | D92: X | F92: X | H92: X | I92: =SUM(I87:J91) -> 0.00
A93: 6.5. Расчет (обоснование) расходов на оплату работ, услуг по содержанию имущества (225)
A94: N п/п | B94: Наименование показателя | F94: Объект | H94: Количество работ (услуг) | I94: Стоимость работ (услуг), руб.
A95: 1 | B95: 2 | F95: 3 | H95: 4 | I95: 5
A96: 1 | B96: Техобслуживание охранной сигн. | F96: ДОУ | H96: 12
A97: 2 | B97: Техобслуживание пожарной сигн. | F97: ДОУ | H97: 12
A98: 3 | B98: Дезинфекция, дератизация | F98: ДОУ | H98: 12
A99: 4 | B99: Техобслуживание стрельца-монит | F99: ДОУ | H99: 12
A100: 5 | B100: Техобслуживание видеонаблюдения | F100: ДОУ | H100: 12
A101: 6 | B101: Техобслуживание теплосчетчиков | F101: ДОУ | H101: 12
A102: 7 | B102: Работы, услуги по содержанию имущества | F102: ДОУ | H102: 12
A103: Итого: | F103: X | H103: X | I103: =SUM(I96:J102) -> 0
A105: 6.6. Расчет (обоснование) расходов на оплату прочих работ, услуг (226,228)
A106: N п/п | B106: Наименование показателя | F106: Количество договоров | H106: Стоимость услуги, руб.
A107: 1 | B107: 2 | F107: 3 | H107: 4
A108: 1 | B108: Услуга вневедомственной охраны | F108: Х
A109: 2 | B109: Производственный контроль | F109: Х
A110: 3 | B110: Регистрация на биржевой площадке
A111: 4 | B111: По РИК №80-р от 07.02.2023г для установки радиоканальной кнопки большей дальности тревожной сигнализации | H111: 25400
A112: 5 | B112: Прочие работы, услуги
A113: Итого: | F113: Х | H113: =SUM(H108:I112) -> 25400
A115: 6.7. Расчет (обоснование) расходов на приобретение основных средств и материальных запасов (340)
A116: N п/п | B116: Наименование расходов | F116: Количество | G116: Средняя стоимость, руб. | I116: Сумма, руб.
B117: 1 | F117: 2 | G117: 3 | I117: 4
A118: 1 | B118: Продукты питания (молочка) | I118: 0
A119: 1 | B119: Продукты питания
A120: 2 | B120: Продукты питания молочка
A121: 3 | B121: Приобретение медикаментов
A122: 4 | B122: Приобретение 99999
A123: Итого: | G123: X | I123: =SUM(I118:J122) -> 0
B125: Резерв з/п
B128: ИТОГО | J128: =J18+I29+I50+I68+J77+I92+I103+H113+I123+I125 -> 25400.00
